bitfinex-derivatives/quotes_ETHF0:USTF0_20250327
["timestamp","ask_amount","ask_price","bid_price","bid_amount"]
[1743044380689,6.22898,2032.3,2032.2,1.3823]
[1743044381088,8.4528,2032.3,2031.8,3.2078]
[1743044381290,0.98419,2031.9,2031.8,1.3277]
[1743044381485,0.98419,2031.9,2031.8,0.49706713]
[1743044381677,0.98431,2031.7,2031.6,1.3277]
[1743044381989,0.98431,2031.7,2031.6,1.82493924]
[1743044382191,0.98431,2031.7,2031.6,42.1277]
[1743044382491,2.40021,2031.7,2031.6,42.1277]
[1743044383286,0.98432,2031.6,2031.5,0.00738698]
[1743044383482,2.30472,2031.6,2031.5,0.00738698]
[1743044383690,5.51252,2031.6,2031.5,0.00738698]
[1743044384787,2.30472,2031.6,2031.5,0.00738698]
[1743044384987,2.30472,2031.6,2031.5,1.38548698]
[1743044401697,3.2078,2031.7,2031.6,0.98432]
[1743044401899,5.83,2031.9,2031.8,0.98423]
[1743044402690,4.5299,2032.3,2031.7,4.5237]
[1743044402895,4.5299,2032.3,2031.8,1.3159]
[1743044403199,0.98392,2032.5,2032.3,0.98398]
[1743044403397,0.98389,2032.5,2032.4,1.3159]
[1743044403706,0.98413,2032.0,2031.9,0.6693]
[1743044403896,6.4338,2032.1,2031.6,40.8]
[1743044404092,0.98432,2031.6,2031.5,0.00738698]
[1743044404406,4.21032,2031.6,2031.5,0.00738698]
[1743044404794,3.226,2031.6,2031.5,0.00738698]
[1743044405102,4.21032,2031.6,2031.5,1.32198698]
[1743044411500,0.98432,2031.6,2031.5,1.32198698]
[1743044411709,4.20932,2031.6,2031.5,1.32198698]
[1743044412913,0.98447,2031.3,2031.2,0.659]
[1743044413120,0.98447,2031.3,2031.2,1.15580752]
[1743044413615,0.98459,2031.1,2030.9,0.98464]
[1743044413910,0.98459,2031.1,2030.9,0.97043356]
[1743044414108,0.98461,2031.0,2030.8,43.14017698]
[1743044414300,0.00738698,2031.2,2030.9,1.4078]
[1743044414301,0.9846,2031.1,2030.9,1.4078]
[1743044414717,0.98461,2031.0,2030.9,1.4078]
[1743044415414,4.20961,2031.0,2030.9,1.4078]
[1743044416009,5.60731,2031.0,2030.9,1.4078]
[1743044416401,4.20961,2031.0,2030.9,1.4078]
[1743044416602,3.225,2031.0,2030.9,1.4078]
[1743044417008,4.20961,2031.0,2030.9,1.4078]
[1743044417612,5.61301,2031.0,2030.9,1.4078]
[1743044419712,0.98466,2030.9,2030.8,0.00738698]
[1743044420011,2.32126,2030.9,2030.8,0.00738698]
[1743044423011,3.226,2031.0,2030.9,0.98466]
[1743044423219,4.19972698,2031.2,2030.9,0.6974]
[1743044423424,0.98456,2031.1,2031.0,1.4338]
[1743044423623,2.40476,2031.1,2031.0,1.4338]
[1743044423831,3.75646,2031.1,2031.0,1.4338]
[1743044425630,0.98466,2030.9,2030.8,0.00738698]
[1743044425831,4.21066,2030.9,2030.8,0.00738698]
[1743044426425,4.21063,2031.0,2030.8,0.00738698]
[1743044426734,0.98463,2031.0,2030.9,0.98466]
[1743044427031,4.2106,2031.1,2030.9,3.09556]
[1743044427231,4.2106,2031.1,2030.9,3.76906]
[1743044427434,4.2106,2031.1,2031.0,1.4107]
[1743044428023,0.9846,2031.1,2031.0,1.4107]
[1743044432840,0.9846,2031.1,2031.0,2.39531]
[1743044433132,0.9846,2031.1,2031.0,1.4107]
[1743044436336,7.42573698,2031.2,2031.0,2.39531]
[1743044436739,3.21518698,2031.2,2031.1,1.4131]
[1743044436940,0.00738698,2031.2,2031.1,2.89391126]
[1743044437235,0.00738698,2031.2,2031.1,2.89392905]
[1743044438131,0.00738698,2031.2,2031.1,2.89396291]
[1743044439239,0.98437,2031.5,2031.3,0.98444]
[1743044439443,0.97016356,2031.5,2031.4,2.0793]
[1743044439635,0.97016356,2031.5,2031.4,2.7962]
[1743044439839,5.59716,2031.6,2031.4,3.78061]
[1743044440042,5.59716,2031.6,2031.5,1.373]
[1743044440238,4.19216,2031.6,2031.5,1.373]
[1743044442237,5.32058698,2031.7,2031.5,2.35736]
[1743044442432,5.32058698,2031.7,2031.5,1.373]
[1743044442637,5.32058698,2031.7,2031.6,1.4241]
[1743044442937,4.21765698,2031.7,2031.6,1.4241]
[1743044443533,0.00738698,2031.7,2031.6,6.11194815]
[1743044443936,0.00738698,2031.7,2031.6,6.11187194]
[1743044444747,7.41685,2032.2,2031.6,48.42755194]
[1743044445042,8.81845,2032.2,2032.0,0.98413]
[1743044445244,3.2078,2032.2,2032.1,1.3911]
[1743044445441,0.98403,2032.2,2032.1,1.3911]
[1743044445844,1.4016,2032.2,2032.1,1.3911]
[1743044446246,4.20901,2032.3,2032.1,1.3911]
[1743044446445,5.61061,2032.3,2032.1,1.3911]
[1743044446645,0.98403,2032.2,2032.1,1.3911]
[1743044446948,2.32163,2032.2,2032.1,1.3911]
[1743044447149,3.225,2032.3,2032.2,0.98403]
[1743044447353,3.225,2032.3,2032.1,2.37514]
[1743044447847,3.225,2032.3,2032.2,1.3339]
[1743044448645,3.225,2032.3,2032.2,2.31793]
[1743044449449,0.00738698,2032.4,2032.3,0.98398]
[1743044450448,0.00738698,2032.4,2032.2,2.3179]
[1743044450948,0.00738698,2032.4,2032.3,2.32168]
[1743044451149,0.00738698,2032.4,2032.3,1.3377]
[1743044451555,0.00738698,2032.4,2032.3,2.32168]
[1743044451853,0.99132698,2032.4,2032.3,1.3377]
[1743044452151,2.05628698,2032.4,2032.3,1.3377]
[1743044452750,3.2078,2033.3,2032.3,10.2695]
[1743044452953,1.3833,2033.0,2032.6,3.2078]
[1743044453249,2.36695,2033.0,2032.8,0.98372]
[1743044453553,0.98369,2032.9,2032.7,1.359]
[1743044453745,2.36699,2032.9,2032.7,1.359]
[1743044454151,2.36704,2032.8,2032.7,1.359]
[1743044454447,3.02634,2032.8,2032.7,1.359]
[1743044457350,0.98382,2032.7,2032.4,2.3355]
[1743044457549,6.20522,2032.7,2032.6,1.3982]
[1743044459646,0.98394,2032.4,2032.2,4.89019]
[1743044459857,5.2214,2032.7,2032.2,4.89019]
[1743044459858,0.98391,2032.5,2032.3,2.29845]
[1743044460160,4.20686,2032.6,2032.4,1.3145]
[1743044460450,4.20684,2032.6,2032.4,2.2984]
[1743044460848,3.223,2032.6,2032.5,2.29839]
[1743044461460,4.85312,2032.7,2032.5,2.29839]
[1743044461656,4.85312,2032.7,2032.6,1.3145]
[1743044462456,3.8693,2032.7,2032.6,1.3145]
[1743044462656,3.2078,2032.7,2032.6,2.29834]
[1743044462962,0.6593,2032.8,2032.7,0.98379]
[1743044463150,0.6593,2032.8,2032.7,1.4008]
[1743044463349,0.6593,2032.8,2032.7,2.38459]
[1743044463550,0.6593,2032.8,2032.7,1.4008]
[1743044463551,1.64304,2032.8,2032.7,1.4008]
[1743044463755,0.6593,2032.8,2032.7,2.38459]
[1743044464052,0.00738698,2033.0,2032.9,0.98369]
[1743044464653,0.00738698,2033.0,2032.9,2.38449]
[1743044464859,3.889,2033.4,2032.9,44.66003]
[1743044465051,3.2078,2033.4,2033.3,0.9835]
[1743044465358,5.57842,2033.7,2033.5,0.98338]
[1743044465555,2.35541,2033.7,2033.6,1.3749]
[1743044465762,1.3721,2033.7,2033.6,1.3749]
[1743044465948,2.35541,2033.7,2033.6,1.3749]
[1743044466154,1.3721,2033.7,2033.6,2.35825]
[1743044466462,1.3721,2033.7,2033.6,1.3749]
[1743044466952,6.4308,2033.8,2033.6,2.35825]
[1743044467160,3.2078,2033.8,2033.7,0.98331]
[1743044467354,3.2078,2033.8,2033.7,2.35821]
[1743044467748,3.2078,2033.8,2033.7,1.3749]
[1743044467954,4.19106,2033.8,2033.7,1.3749]
[1743044468353,3.2078,2033.8,2033.4,3.21518698]
[1743044468552,0.9834,2033.5,2033.4,0.00738698]
[1743044469058,3.2078,2033.5,2032.8,3.2078]
[1743044469260,0.98353,2033.3,2033.0,0.98361]
[1743044469461,0.98353,2033.3,2033.1,2.33399]
[1743044469659,0.98353,2033.3,2033.2,1.3504]
[1743044470157,3.223,2033.3,2033.2,2.33395]
[1743044470557,2.36578,2033.4,2033.2,2.33395]
[1743044471057,4.20641,2033.5,2033.3,0.9835]
[1743044471258,4.20641,2033.5,2033.4,1.363]
[1743044472560,3.2078,2033.6,2033.4,1.363]
[1743044472762,1.3675,2033.7,2033.4,2.34642]
[1743044472963,0.98336,2033.6,2033.4,2.34642]
[1743044473164,3.68784,2033.7,2033.4,2.34642]
[1743044473954,3.68784,2033.7,2033.5,0.98338]
[1743044474266,10.03529,2033.8,2033.6,2.33345]
[1743044474466,10.03529,2033.8,2033.7,1.3501]
[1743044474659,11.33649,2033.8,2033.7,1.3501]
[1743044475667,0.98808355,2033.9,2033.7,2.33337]
[1743044475858,2.28928355,2033.9,2033.8,1.3501]
[1743044476262,5.49708355,2033.9,2033.8,1.3501]
[1743044479562,2.28928355,2033.9,2033.8,1.3501]
[1743044480669,0.98336,2033.6,2033.4,4.84232]
[1743044481669,0.98334,2033.7,2033.5,0.9834]
[1743044481871,0.98332,2033.7,2033.5,0.98337]
[1743044482074,0.98332,2033.7,2033.6,1.33]
[1743044482272,2.32979,2033.8,2033.6,2.31332]
[1743044482573,0.98329,2033.8,2033.6,2.31332]
[1743044482762,0.98329,2033.8,2033.7,1.9873]
[1743044484672,2.33459355,2033.9,2033.7,2.97061]
[1743044484877,2.33459355,2033.9,2033.8,1.4157]
[1743044485075,0.98809355,2033.9,2033.8,1.4157]
[1743044485277,4.20909355,2033.9,2033.8,1.4157]
[1743044487370,3.22586355,2033.9,2033.5,0.7143]
[1743044487673,0.98335,2033.7,2033.6,1.3748]
[1743044488275,0.98345,2033.4,2033.3,40.8]
[1743044488470,0.98345,2033.4,2033.2,2.35834]
[1743044488775,0.98345,2033.4,2033.3,1.3748]
[1743044491077,0.98344,2033.5,2033.3,2.35829]
[1743044491282,0.98344,2033.5,2033.4,1.3275]
[1743044492982,0.9834,2033.5,2033.4,1.3275]
[1743044493782,0.9834,2033.5,2033.4,1.82268789]
[1743044493982,0.9834,2033.5,2033.4,1.3275]
[1743044499175,0.9834,2033.5,2033.0,0.00738698]
[1743044499176,0.9836,2033.1,2033.0,0.00738698]
[1743044499382,4.2046,2033.1,2033.0,0.00738698]
[1743044499784,4.9087,2033.1,2033.0,0.00738698]
[1743044499984,5.5694,2033.1,2033.0,0.00738698]
[1743044500778,5.96288263,2033.1,2033.0,0.00738698]
[1743044502180,5.96288263,2033.1,2032.8,1.4019]
[1743044502181,0.98369,2032.9,2032.8,1.4019]
[1743044502986,5.66706,2032.9,2032.3,42.1703]
[1743044503181,0.98389,2032.5,2032.4,1.4204]
[1743044503488,0.98389,2032.5,2032.4,1.42778698]
[1743044505489,4.20589,2032.5,2032.4,1.42778698]
[1743044505993,5.60009,2032.5,2032.4,1.42778698]
[1743044507482,4.20589,2032.5,2032.4,1.42778698]
[1743044510686,5.64099,2032.5,2032.4,1.42778698]
[1743044514091,0.98398,2032.3,2032.2,3.2078]
[1743044514285,0.98398,2032.3,2032.2,3.20041302]
[1743044514795,2.31918,2032.3,2032.2,3.20041302]
[1743044517493,0.98403,2032.2,2032.1,1.389]
[1743044517693,4.20703,2032.2,2032.1,1.389]
[1743044518192,5.57203,2032.2,2032.1,1.389]
[1743044521399,4.20703,2032.2,2032.1,1.389]
[1743044521789,3.223,2032.2,2032.1,2.37307]
[1743044522504,4.20703,2032.2,2032.1,1.389]
[1743044526095,5.62353,2032.2,2032.1,1.389]
[1743044526685,8.83133,2032.2,2032.1,1.389]
[1743044527087,0.98408,2032.1,2032.0,0.00738698]
[1743044527386,0.98432,2031.6,2031.5,0.6616]
[1743044527589,4.20732,2031.6,2031.5,0.6616]
[1743044528291,5.62382,2031.6,2031.5,2.0822]
[1743044528489,4.20732,2031.6,2031.5,2.0822]
[1743044534504,0.98431,2031.7,2031.5,3.06655]
[1743044534703,4.20831,2031.7,2031.6,1.4141]
[1743044537898,5.53401,2031.7,2031.6,1.4141]
[1743044539098,3.2078,2032.0,2031.6,1.4141]
[1743044539292,10.08441,2032.3,2031.8,3.2078]
[1743044539499,7.41581,2032.3,2032.0,0.98408]
[1743044539693,0.98403,2032.2,2032.1,1.3235]
[1743044540903,7.41581,2032.3,2032.1,1.3235]
[1743044541108,0.98403,2032.2,2032.1,1.3235]
[1743044541702,7.41581,2032.3,2032.1,1.3235]
[1743044541900,0.98403,2032.2,2032.1,1.3235]
[1743044542705,2.28253,2032.2,2032.1,1.3235]
[1743044546213,0.98403,2032.2,2032.1,1.3235]
[1743044547903,2.36533,2032.2,2032.1,1.3235]
[1743044563017,0.98403,2032.2,2032.1,1.3235]
[1743044566123,6.4308,2032.3,2032.1,1.3235]
[1743044566429,0.98403,2032.2,2032.1,1.3235]
[1743044567427,2.31203,2032.2,2032.1,1.3235]
[1743044570527,3.00773,2032.2,2032.1,1.3235]
[1743044575426,3.78993339,2032.2,2032.1,1.3235]
[1743044576227,4.66455618,2032.2,2032.1,1.3235]
[1743044576723,4.6643162,2032.2,2032.1,1.3235]
[1743044577119,3.88235279,2032.2,2032.1,1.3235]
[1743044578029,1.85865279,2032.2,2032.1,1.3235]
[1743044578337,4.20603,2032.2,2032.1,1.82083198]
[1743044579627,4.20603,2032.2,2032.1,1.82079678]
[1743044580122,4.20603,2032.2,2032.1,1.82083074]
[1743044581132,4.20603,2032.2,2032.1,1.82084431]
[1743044586040,4.20603,2032.2,2032.1,1.3235]
[1743044586243,2.4607,2031.7,2031.3,0.00738698]
[1743044586443,0.98442,2031.4,2031.3,0.00738698]
[1743044586936,0.98481,2030.6,2030.4,18.57231642]
[1743044587141,0.98481,2030.6,2030.5,11.64775143]
[1743044587646,0.98481,2030.6,2030.4,40.8]
[1743044587940,0.98483,2030.6,2030.4,40.8]
[1743044588129,0.98483,2030.6,2030.5,1.3788]
[1743044588640,0.98478,2030.7,2030.5,1.3788]
[1743044588841,0.98478,2030.7,2030.5,2.032]
[1743044589544,0.98481,2030.6,2030.5,2.032]
[1743044592038,0.98479,2030.7,2030.5,2.032]
[1743044592441,4.20774,2030.8,2030.5,2.032]
[1743044592642,4.20774,2030.8,2030.5,3.01685]
[1743044593444,4.20774,2030.8,2030.5,2.032]
[1743044594239,0.98476,2030.7,2030.5,2.032]
[1743044594647,0.98481,2030.6,2030.5,2.032]
[1743044597043,0.98478,2030.7,2030.5,2.032]
[1743044597246,0.98481,2030.6,2030.5,2.032]
[1743044598039,0.98479,2030.7,2030.5,2.032]
[1743044598244,4.5318,2030.8,2030.5,2.032]
[1743044598439,0.9848,2030.7,2030.5,2.032]
[1743044598647,0.98481,2030.6,2030.5,2.032]
[1743044598944,0.98479,2030.7,2030.5,2.032]
[1743044599145,0.98479,2030.7,2030.5,3.01685]
[1743044599346,5.51653,2030.8,2030.6,0.98479]
[1743044599564,4.20773,2030.8,2030.7,1.3705]
[1743044599740,3.223,2030.8,2030.7,1.3705]
[1743044600046,4.20771,2030.8,2030.7,1.3705]
[1743044600247,3.223,2030.8,2030.7,1.3705]
[1743044601541,3.223,2030.8,2030.7,2.35526]
[1743044601749,3.223,2030.8,2030.7,1.3705]
[1743044603649,3.223,2030.8,2030.7,2.35526]
[1743044603854,3.224,2031.0,2030.8,0.98469]
[1743044604052,3.224,2031.0,2030.9,1.3724]
[1743044604353,4.20861,2031.0,2030.9,1.3724]
[1743044604555,5.51751,2031.0,2030.9,1.3724]
[1743044605453,0.9847,2030.9,2030.6,0.98478]
[1743044605652,2.40545,2030.8,2030.6,2.33279]
[1743044605953,0.98475,2030.8,2030.7,1.348]
[1743044607448,0.9848,2030.7,2030.5,0.6532]
[1743044607650,5.5898,2030.7,2030.6,1.348]
[1743044609748,0.9849,2030.4,2030.3,0.67198698]
[1743044609946,0.9849,2030.4,2030.3,1.43478698]
[1743044611151,0.98489,2030.5,2030.3,1.43478698]
[1743044611448,0.00738698,2030.6,2030.3,1.43478698]
[1743044611646,0.9849,2030.4,2030.3,1.43478698]
[1743044615254,0.9849,2030.4,2030.3,1.93219503]
[1743044616048,0.9849,2030.4,2030.3,1.93220099]
[1743044616547,0.00738698,2030.6,2030.4,0.98487]
[1743044616548,4.21621698,2030.6,2030.4,0.98487]
[1743044616754,3.23138698,2030.6,2030.5,2.80587401]
[1743044617344,4.21619698,2030.6,2030.5,1.82101401]
[1743044617756,4.21619698,2030.6,2030.5,2.80685624]
[1743044618057,3.23138698,2030.6,2030.5,2.80685624]
[1743044618256,4.21619698,2030.6,2030.5,1.82199624]
[1743044620057,4.21619698,2030.6,2030.5,1.82204263]
[1743044620252,4.21619698,2030.6,2030.5,1.3236]
[1743044621651,0.98486,2030.5,2030.3,0.99232698]
[1743044621857,0.98486,2030.5,2030.4,1.3571]
[1743044622254,2.37796,2030.5,2030.4,1.3571]
[1743044623258,0.9849,2030.4,2030.3,0.00738698]
[1743044623561,2.3401,2030.4,2030.3,0.00738698]
[1743044639167,5.5479,2030.4,2030.3,0.00738698]
[1743044640374,0.9849,2030.4,2030.3,0.00738698]
[1743044640569,4.2089,2030.4,2030.3,0.72158698]
[1743044640769,4.2089,2030.4,2030.3,1.43228698]
[1743044640975,4.2089,2030.4,2030.3,2.83208698]
[1743044642370,2.31709,2030.5,2030.3,2.83208698]
[1743044642575,0.98489,2030.5,2030.4,1.3916]
[1743044642776,4.20889,2030.5,2030.4,1.3916]
[1743044645174,0.98489,2030.5,2030.4,1.3916]
[1743044645474,4.20889,2030.5,2030.4,1.3916]
[1743044645782,0.00738698,2030.6,2030.4,1.3916]
[1743044645971,4.21621698,2030.6,2030.4,2.37649]
[1743044646280,4.21621698,2030.6,2030.5,1.3411]
[1743044647379,0.00738698,2030.6,2030.5,2.32596]
[1743044647681,0.00738698,2030.6,2030.5,2.82440336]
[1743044647878,0.00738698,2030.6,2030.5,1.83954336]
[1743044648084,0.00738698,2030.6,2030.5,2.82440336]
[1743044648584,0.00738698,2030.6,2030.5,43.62440336]
[1743044648778,0.00738698,2030.6,2030.5,43.62430867]
[1743044648980,0.00738698,2030.6,2030.5,2.82430867]
[1743044650779,0.99219698,2030.6,2030.5,1.8392559]
[1743044651377,0.99219698,2030.6,2030.5,1.3411]
[1743044651983,7.42299698,2030.6,2030.5,1.3411]
[1743044652286,0.9849,2030.4,2030.3,0.00738698]
[1743044652981,2.2997,2030.4,2030.3,0.00738698]
[1743044654885,0.98489,2030.5,2030.3,0.00738698]
[1743044655084,3.223,2030.4,2030.3,0.99232698]
[1743044655781,3.223,2030.4,2030.3,0.99233698]
[1743044656087,3.223,2030.4,2030.3,4.69853246]
[1743044656276,3.223,2030.5,2030.4,0.98488]
[1743044656476,3.223,2030.5,2030.4,2.87419996]
[1743044657284,0.00738698,2030.6,2030.5,0.98486]
[1743044657486,3.23038698,2030.6,2030.5,3.55728479]
[1743044657686,4.21519698,2030.6,2030.5,3.55728479]
[1743044657879,4.21519698,2030.6,2030.5,2.57242479]
[1743044658279,3.23038698,2030.6,2030.5,3.55728479]
[1743044658481,3.23038698,2030.6,2030.5,3.55721867]
[1743044659599,4.21519698,2030.6,2030.5,2.57235867]
[1743044659790,3.23038698,2030.6,2030.5,2.0742]
[1743044660477,3.23038698,2030.6,2030.5,3.05906]
[1743044660892,3.23038698,2030.6,2030.5,3.55719935]
[1743044663391,4.21519698,2030.6,2030.5,2.57233935]
[1743044663690,4.21519698,2030.6,2030.5,2.0742]
[1743044664088,4.21519698,2030.6,2030.5,3.05906]
[1743044665092,4.21519698,2030.6,2030.5,3.55724426]
[1743044665291,4.21519698,2030.6,2030.5,3.05906]
[1743044666092,4.21519698,2030.6,2030.5,3.55732946]
[1743044666291,4.21519698,2030.6,2030.5,2.57246826]
[1743044666592,4.21519698,2030.6,2030.5,3.55732826]
[1743044667991,4.21519698,2030.6,2030.5,2.57246826]
[1743044668592,5.57759698,2030.6,2030.5,2.57246826]
[1743044668780,5.57759698,2030.6,2030.5,3.55732826]
[1743044669593,4.59278698,2030.6,2030.5,3.55732826]
[1743044670192,5.57759698,2030.6,2030.5,3.55742605]
[1743044671287,4.59278698,2030.6,2030.5,3.55742605]
[1743044671489,3.23038698,2030.6,2030.5,3.55742605]
[1743044671791,3.2078,2031.2,2030.9,0.98466]
[1743044671988,0.98461,2031.0,2030.8,0.98468]
[1743044672294,4.20661,2031.0,2030.8,0.98468]
[1743044672492,0.98466,2030.9,2030.8,0.98468]
[1743044672791,2.33406,2030.9,2030.8,0.98468]
[1743044673182,2.33406,2030.9,2030.7,0.98474]
[1743044673385,2.33408,2030.9,2030.7,0.98474]
[1743044673693,2.0627,2030.8,2030.7,0.98474]
[1743044673891,4.20665,2031.0,2030.8,0.98468]
[1743044674093,6.26935,2031.0,2030.8,0.98468]
[1743044675193,0.98471,2030.8,2030.7,0.98473]
[1743044675388,0.98471,2030.8,2030.7,1.48292895]
[1743044675782,0.98479,2030.7,2030.5,1.66803]
[1743044675996,3.7368,2030.7,2030.5,1.66803]
[1743044676196,6.9588,2030.7,2030.5,1.66803]
[1743044676396,1.3454,2030.6,2030.5,1.66803]
[1743044676698,1.3454,2030.6,2030.5,2.16635222]
[1743044677997,1.3454,2030.6,2030.5,2.16636733]
[1743044678196,1.3454,2030.6,2030.5,2.16636446]
[1743044679991,5.61341,2030.7,2030.5,2.16636446]
[1743044680200,4.6286,2030.7,2030.6,0.98481]
[1743044680592,0.00738698,2031.1,2030.6,0.49823662]
[1743044680593,0.98465,2031.0,2030.6,0.49823662]
[1743044680901,5.61735,2031.0,2030.8,0.98468]
[1743044681201,5.61735,2031.0,2030.8,0.98471]
[1743044681498,4.6327,2031.0,2030.9,0.98466]
[1743044682109,1.4107,2031.0,2030.9,0.98466]
[1743044682404,1.4107,2031.0,2030.9,1.48234267]
[1743044682595,3.22938698,2031.1,2031.0,0.98461]
[1743044682794,0.00738698,2031.1,2031.0,2.40371]
[1743044683000,0.00738698,2031.1,2031.0,3.5753293]
[1743044684000,0.00738698,2031.1,2031.0,3.57517894]
[1743044684902,1.31248698,2031.1,2031.0,3.57517894]
[1743044685100,2.29704698,2031.1,2031.0,2.59056894]
[1743044685290,1.31248698,2031.1,2031.0,1.4191]
[1743044685602,1.31248698,2031.1,2031.0,2.40371]
[1743044685802,2.29704698,2031.1,2031.0,1.4191]
[1743044687203,5.51904698,2031.1,2031.0,1.4191]
[1743044690606,4.53448698,2031.1,2031.0,2.40371]
[1743044691007,5.51904698,2031.1,2031.0,1.4191]
[1743044691303,0.00738698,2031.1,2031.0,2.90077911]
[1743044692407,0.00738698,2031.1,2031.0,6.10857911]
[1743044693705,0.00738698,2031.1,2031.0,6.10822775]
[1743044694200,4.19211,2031.7,2031.5,0.98434]
[1743044694403,10.18400356,2031.7,2031.6,1.3105]
[1743044694805,6.96300356,2031.7,2031.6,1.3105]
[1743044695104,10.18400356,2031.7,2031.6,1.3105]
[1743044695699,0.98437,2031.5,2031.4,0.00738698]
[1743044697007,0.98437,2031.5,2031.4,1.43668698]
[1743044699615,1.4315,2031.6,2031.5,0.98437]
[1743044699814,4.6525,2031.6,2031.5,0.98437]
[1743044700109,3.19359356,2031.7,2031.6,0.98432]
[1743044700410,3.19359356,2031.7,2031.6,2.29822]
[1743044700713,4.55309356,2031.7,2031.6,2.29822]
[1743044701213,4.55309356,2031.7,2031.6,1.3139]
[1743044701417,5.21549356,2031.7,2031.6,1.3139]
[1743044701707,5.21549356,2031.7,2031.6,2.29822]
[1743044702409,3.19359356,2031.7,2031.6,2.29822]
[1743044702713,5.2067,2031.8,2031.6,1.3139]
[1743044703015,0.00738698,2031.9,2031.8,0.98423]
[1743044703213,4.55068698,2031.9,2031.8,0.98423]
[1743044703411,4.55068698,2031.9,2031.8,1.64763]
[1743044703608,0.00738698,2031.9,2031.8,1.64763]
[1743044705800,1.42258698,2031.9,2031.8,1.64763]
[1743044706410,2.40676698,2031.9,2031.8,1.64763]
[1743044706616,1.42258698,2031.9,2031.8,1.64763]
[1743044707310,0.00738698,2031.9,2031.8,1.64763]
[1743044707809,0.00738698,2031.9,2031.8,3.01703]
[1743044708506,0.00738698,2031.9,2031.8,1.3694]
[1743044708711,0.00738698,2031.9,2031.8,2.35363]
[1743044708912,1.41408698,2031.9,2031.8,2.35363]
[1743044710218,2.39826698,2031.9,2031.8,1.3694]
[1743044710711,0.98431,2031.7,2031.4,1.66999698]
[1743044710919,2.7628,2031.6,2031.5,2.32747]
[1743044711923,3.74712,2031.6,2031.5,2.32747]
[1743044712123,2.7628,2031.6,2031.5,2.32747]
[1743044713620,3.74712,2031.6,2031.5,2.32747]
[1743044714115,3.22,2031.7,2031.6,0.98432]
[1743044714324,0.98426,2031.8,2031.7,0.98427]
[1743044714512,2.30296,2031.8,2031.7,0.98427]
[1743044714712,2.30296,2031.8,2031.7,2.30307]
[1743044714912,2.30296,2031.8,2031.7,1.3188]
[1743044718415,0.98437,2031.5,2031.4,0.68558698]
[1743044718615,3.2078,2031.6,2031.4,0.00738698]
[1743044718919,2.37137,2031.5,2031.4,0.00738698]
[1743044719626,3.67927,2031.5,2031.4,1.32788698]
[1743044720019,0.98452,2031.2,2031.1,1.9881]
[1743044720216,0.98447,2031.3,2031.1,42.77389356]
[1743044720420,1.387,2031.5,2031.2,1.3205]
[1743044720721,1.37279356,2031.5,2031.2,1.3205]
[1743044720921,7.41116,2031.6,2031.4,0.9844]
[1743044721124,7.41116,2031.6,2031.5,1.4324]
[1743044721822,6.4268,2031.6,2031.5,1.4324]
[1743044722027,3.2078,2031.6,2031.5,2.41677]
[1743044723425,4.19212,2031.6,2031.5,2.1342]
[1743044725315,3.2078,2031.6,2031.5,2.1342]
[1743044725627,3.2078,2031.6,2031.5,3.11857]
[1743044726223,0.6964,2031.8,2031.5,2.63031694]
[1743044726422,0.6964,2031.8,2031.7,0.98427]
[1743044726829,4.21059698,2031.9,2031.7,0.98427]
[1743044727027,4.87059698,2031.9,2031.8,1.4206]
[1743044727230,4.87059698,2031.9,2031.5,0.7018]
[1743044727231,3.88638698,2031.9,2031.5,0.7018]
[1743044727432,0.98432,2031.7,2031.6,1.4206]
[1743044731638,3.2078,2031.8,2031.3,4.19224]
[1743044731835,1.64686,2031.6,2031.4,1.3693]
[1743044732028,0.98437,2031.5,2031.4,1.3693]
[1743044732227,1.64117,2031.5,2031.4,1.3693]
[1743044732443,3.03237,2031.5,2031.4,1.3693]
[1743044737447,6.24017,2031.5,2031.4,1.3693]
[1743044743752,3.03237,2031.5,2031.4,1.3693]
[1743044749256,0.98447,2031.3,2031.2,0.6747]
[1743044749460,0.98447,2031.3,2031.2,1.17108714]
[1743044749847,1.64277,2031.3,2031.2,1.17108714]
[1743044750649,1.64277,2031.3,2031.2,2.54928714]
[1743044750846,1.64277,2031.3,2031.2,1.87458714]
[1743044752058,4.86177,2031.3,2031.2,1.3782]
[1743044755259,8.06957,2031.3,2031.2,1.3782]
[1743044758555,0.98452,2031.2,2031.1,0.00738698]
[1743044758759,0.98452,2031.2,2031.0,3.2078]
[1743044758760,0.98456,2031.1,2031.0,4.59648054]
[1743044759063,0.98461,2031.0,2030.9,0.655]
[1743044759250,3.06271,2031.0,2030.9,0.655]
[1743044759658,3.06271,2031.0,2030.9,1.15177674]
[1743044760052,3.06271,2031.0,2030.9,0.655]
[1743044760256,2.35381,2031.0,2030.9,1.15177378]
[1743044760651,0.9846,2031.1,2030.9,1.15177378]
[1743044760864,0.98452,2031.2,2031.0,1.48132346]
[1743044761162,0.98452,2031.2,2031.1,0.49668211]
[1743044761464,0.98452,2031.2,2031.1,41.97408211]
[1743044761969,4.19227,2031.3,2031.1,42.95861211]
[1743044762161,4.19227,2031.3,2031.2,0.49668211]
[1743044762363,4.17806356,2031.3,2031.2,0.49668211]
[1743044762563,3.19359356,2031.3,2031.2,1.48120211]
[1743044762866,4.17806356,2031.3,2031.1,42.46193]
[1743044763069,4.17806356,2031.3,2031.2,0.48253408]
[1743044763369,4.16385712,2031.3,2031.2,0.48253408]
[1743044765067,4.16385712,2031.3,2031.1,1.66193]
[1743044765258,4.16385712,2031.3,2031.1,1.64772356]
[1743044765657,5.46435712,2031.3,2031.1,1.64772356]
[1743044766159,1.3332,2031.2,2031.1,1.64772356]
[1743044766360,2.31772,2031.2,2031.1,1.64772356]
[1743044766968,0.98452,2031.2,2031.1,1.64772356]
[1743044767670,1.3332,2031.3,2031.1,0.66319356]